bitfinex-derivatives/quotes_BTCF0:USTF0_20210409
["timestamp","ask_amount","ask_price","bid_price","bid_amount"]
[1617952944923,0.8152119,57847.0,57846.0,5.10688513]
[1617952945824,0.8152119,57847.0,57846.0,4.10688513]
[1617952946526,0.36331795,57847.0,57846.0,4.10688513]
[1617952947128,2.90351795,57847.0,57846.0,1.57648513]
[1617952947329,2.90351795,57847.0,57846.0,2.57648513]
[1617952947729,3.0231909,57847.0,57846.0,2.48400285]
[1617952948830,0.4829909,57847.0,57846.0,1.48400285]
[1617952949232,0.4829909,57847.0,57846.0,5.23340285]
[1617952949534,0.36331795,57847.0,57846.0,5.23340285]
[1617952949932,0.36331795,57847.0,57846.0,5.32588665]
[1617952972557,0.34841795,57847.0,57846.0,5.32588665]
[1617952972956,0.34841795,57847.0,57846.0,2.57648665]
[1617952973156,0.34841795,57847.0,57846.0,1.57648665]
[1617952973368,3.86641795,57847.0,57846.0,2.57648665]
[1617952973558,3.86641795,57847.0,57846.0,2.48400285]
[1617952973865,3.98032397,57847.0,57846.0,2.48400285]
[1617952974959,3.97782397,57847.0,57846.0,2.48400285]
[1617952975359,0.45982397,57847.0,57846.0,2.48400285]
[1617952975559,0.45982397,57847.0,57846.0,2.98799579]
[1617952975963,0.34591795,57847.0,57846.0,5.74999579]
[1617952976362,0.34591795,57847.0,57846.0,5.84247729]
[1617952976763,0.34591795,57847.0,57846.0,5.33848435]
[1617952977565,0.45180822,57852.0,57846.0,5.33848435]
[1617952977966,0.45180822,57852.0,57851.0,1.0]
[1617952978167,0.45180822,57852.0,57851.0,1.85253994]
[1617952978367,0.45180822,57852.0,57851.0,2.12253994]
[1617952978570,0.45180822,57852.0,57851.0,2.18419385]
[1617952983071,3.81030822,57852.0,57851.0,2.18419385]
[1617952983878,3.92980644,57852.0,57851.0,2.18419385]
[1617952985176,3.92980644,57852.0,57851.0,1.18419385]
[1617952985376,3.92980644,57852.0,57851.0,1.07790385]
[1617952986177,3.92980644,57852.0,57851.0,2.07790385]
[1617952987679,4.07283644,57852.0,57851.0,2.07790385]
[1617952987878,4.07283644,57852.0,57851.0,1.07790385]
[1617952988382,4.07283644,57852.0,57851.0,0.63418767]
[1617952990184,4.5862466,57852.0,57851.0,0.63418767]
[1617952996590,4.5862466,57852.0,57851.0,0.57253376]
[1617952998018,4.07283644,57852.0,57851.0,0.57253376]
[1617952999494,3.92980644,57852.0,57851.0,0.57253376]
[1617953000396,4.29939679,57852.0,57851.0,0.93713676]
[1617953003602,4.41401679,57852.0,57851.0,0.93713676]
[1617953016620,4.41401679,57852.0,57851.0,0.57253376]
[1617953017219,4.92726356,57852.0,57851.0,0.57253376]
[1617953021825,5.03452011,57852.0,57851.0,0.57253376]
[1617953023545,4.52127334,57852.0,57851.0,0.57253376]
[1617953026230,5.03452657,57852.0,57851.0,0.57253376]
[1617953026930,4.52127334,57852.0,57851.0,0.57253376]
[1617953027429,5.03456118,57852.0,57851.0,0.57253376]
[1617953030734,5.08226118,57852.0,57851.0,0.57253376]
[1617953032235,5.08226118,57852.0,57851.0,0.27]
[1617953032835,5.08226118,57852.0,57850.0,0.30423767]
[1617953033236,5.08226118,57852.0,57851.0,0.27]
[1617953033437,3.62807655,57852.0,57851.0,0.27]
[1617953034038,4.96284937,57852.0,57851.0,0.27]
[1617953035440,4.96284937,57852.0,57851.0,0.5743609]
[1617953035839,4.96284937,57852.0,57851.0,0.3043609]
[1617953036340,4.96284937,57852.0,57851.0,0.5743609]
[1617953037443,1.60434937,57852.0,57851.0,0.5743609]
[1617953038246,1.60434937,57852.0,57851.0,4.2838609]
[1617953038442,1.5875802,57852.0,57851.0,4.2838609]
[1617953038843,1.88158946,57852.0,57851.0,4.2838609]
[1617953040948,1.88158946,57852.0,57851.0,4.64926126]
[1617953041551,1.88158946,57852.0,57851.0,4.2838609]
[1617953041948,1.88158946,57852.0,57851.0,4.64921892]
[1617953042348,1.5875802,57852.0,57851.0,4.64921892]
[1617953042847,1.07422183,57852.0,57851.0,5.20250352]
[1617953043247,0.62245415,57852.0,57851.0,5.20250352]
[1617953043446,0.5151976,57852.0,57851.0,5.20250352]
[1617953043752,0.5151976,57852.0,57851.0,1.49300352]
[1617953043947,0.5151976,57852.0,57851.0,2.49300352]
[1617953044149,0.5151976,57852.0,57851.0,1.49300352]
[1617953045150,0.5151976,57852.0,57851.0,2.49300352]
[1617953045949,0.5151976,57852.0,57851.0,2.69300352]
[1617953046150,0.5151976,57852.0,57851.0,3.19939328]
[1617953048550,0.0477,57852.0,57851.0,3.19939328]
[1617953048752,0.0477,57852.0,57851.0,2.69300352]
[1617953049551,0.0477,57852.0,57851.0,6.39780352]
[1617953050154,0.0477,57852.0,57851.0,6.49028506]
[1617953051756,0.0477,57852.0,57851.0,6.29028506]
[1617953055362,0.0477,57852.0,57851.0,6.34148506]
[1617953057261,0.0477,57852.0,57851.0,6.29028506]
[1617953060364,0.0477,57852.0,57851.0,6.18302851]
[1617953061163,0.368869,57856.0,57851.0,5.13532851]
[1617953061866,0.36888033,57855.0,57852.0,0.06165783]
[1617953062266,0.36888033,57855.0,57854.0,1.47146622]
[1617953062766,0.36888033,57855.0,57854.0,1.80312099]
[1617953063167,0.39147461,57878.0,57854.0,1.80312099]
[1617953063168,0.36886146,57857.0,57854.0,1.80312099]
[1617953063668,0.36886341,57858.0,57856.0,0.36393136]
[1617953063876,0.36886341,57858.0,57856.0,1.36393136]
[1617953064068,0.36886341,57858.0,57857.0,0.63394164]
[1617953064267,0.47611996,57858.0,57857.0,0.63394164]
[1617953064473,0.47611996,57858.0,57857.0,0.69559664]
[1617953064969,0.5728536,57858.0,57857.0,1.69559664]
[1617953065269,0.20399019,57858.0,57857.0,0.69559664]
[1617953065769,0.10725655,57858.0,57857.0,0.69559664]
[1617953066368,0.36875337,57859.0,57857.0,0.69559664]
[1617953066869,0.36875337,57859.0,57858.0,0.36375757]
[1617953067372,0.36875337,57859.0,57858.0,0.63375757]
[1617953070373,0.36875215,57860.0,57858.0,0.63375757]
[1617953070774,0.36875215,57860.0,57859.0,0.36364765]
[1617953070973,0.36875215,57860.0,57859.0,3.61112765]
[1617953071174,0.36875215,57860.0,57859.0,3.88112765]
[1617953071374,0.36875215,57860.0,57859.0,3.51748]
[1617953072375,0.36875215,57860.0,57859.0,3.88116926]
[1617953072775,0.36875215,57860.0,57859.0,3.51748]
[1617953073875,0.36875215,57860.0,57859.0,3.8812222]
[1617953074676,0.36875215,57860.0,57859.0,0.7365222]
[1617953075178,3.27365215,57860.0,57859.0,0.7365222]
[1617953075579,3.27365215,57860.0,57859.0,0.37278]
[1617953075580,0.36875215,57860.0,57859.0,0.37278]
[1617953075779,0.36875215,57860.0,57859.0,3.81898]
[1617953081687,0.36875215,57860.0,57859.0,0.37278]
[1617953081888,3.47735215,57860.0,57859.0,0.37278]
[1617953082388,3.47735215,57860.0,57859.0,0.27]
[1617953082793,3.58751685,57860.0,57859.0,0.27]
[1617953083593,3.58751685,57860.0,57854.0,0.10725655]
[1617953083594,3.58751685,57860.0,57858.0,0.01]
[1617953083893,3.58751685,57860.0,57859.0,0.27]
[1617953084094,3.55923355,57860.0,57859.0,0.27]
[1617953084293,0.45063355,57860.0,57857.0,0.27]
[1617953084494,0.10725655,57858.0,57857.0,3.1555]
[1617953085125,0.58617523,57858.0,57857.0,3.1655]
[1617953085496,0.47597827,57858.0,57857.0,3.1655]
[1617953085909,0.58617631,57858.0,57857.0,3.1655]
[1617953086296,1.03692281,57858.0,57857.0,3.1655]
[1617953091205,1.03692281,57858.0,57857.0,3.46877764]
[1617953091406,0.58617631,57858.0,57857.0,3.46877764]
[1617953092204,0.58617631,57858.0,57857.0,3.83268061]
[1617953092403,0.58617631,57858.0,57857.0,0.67718061]
[1617953092804,4.07177631,57858.0,57857.0,0.67718061]
[1617953093206,4.52267855,57858.0,57857.0,0.31327764]
[1617953093404,1.03707855,57858.0,57857.0,0.31327764]
[1617953093603,1.03707855,57858.0,57857.0,2.85007764]
[1617953093806,1.33782168,57858.0,57857.0,2.85007764]
[1617953094205,0.92688051,57858.0,57857.0,2.5468]
[1617953094604,1.03716292,57858.0,57857.0,2.5468]
[1617953097111,1.03716292,57858.0,57857.0,0.01]
[1617953097317,3.61946292,57858.0,57857.0,0.01]
[1617953097812,4.43455302,57858.0,57857.0,0.67922909]
[1617953098311,4.43455302,57858.0,57857.0,0.66922909]
[1617953098529,4.43455302,57858.0,57857.0,0.93922909]
[1617953099112,3.95554889,57858.0,57857.0,0.93922909]
[1617953099312,4.32538802,57858.0,57857.0,1.00088903]
[1617953100418,4.32538802,57858.0,57857.0,0.57419504]
[1617953101818,1.74308802,57858.0,57857.0,0.57419504]
[1617953102118,1.74308802,57858.0,57857.0,3.53349504]
[1617953102418,1.44161756,57858.0,57857.0,3.53349504]
[1617953102920,1.55731839,57858.0,57857.0,3.53349504]
[1617953103121,1.55731839,57858.0,57857.0,0.57419504]
[1617953103322,4.23272839,57858.0,57857.0,0.57419504]
[1617953103922,4.5369036,57858.0,57857.0,0.27]
[1617953104323,4.5369036,57858.0,57856.0,0.30406324]
[1617953104724,4.5369036,57858.0,57857.0,0.27]
[1617953105127,2.78266655,57858.0,57857.0,0.27]
[1617953105627,4.11682422,57858.0,57857.0,0.27]
[1617953106027,4.11682422,57858.0,57855.0,0.30410934]
[1617953106327,4.11682422,57858.0,57856.0,0.27]
[1617953106527,0.4195488,57857.0,57856.0,0.27]
[1617953106727,0.4195488,57857.0,57855.0,0.30410934]
[1617953107028,1.7537321,57857.0,57856.0,0.27]
[1617953107649,0.11551669,57857.0,57856.0,0.27]
[1617953107829,1.75374516,57857.0,57856.0,0.27]
[1617953108064,4.59344516,57857.0,57855.0,0.30419109]
[1617953108256,1.75374516,57857.0,57856.0,0.27]
[1617953108430,1.44970441,57857.0,57856.0,0.57409655]
[1617953108632,4.29000441,57857.0,57856.0,0.57409655]
[1617953108831,4.29000441,57857.0,57856.0,0.30409655]
[1617953109233,4.59387645,57857.0,57856.0,0.57409655]
[1617953109531,4.59387645,57857.0,57856.0,0.27]
[1617953110031,4.74542645,57857.0,57855.0,0.31397396]
[1617953110231,4.74542645,57857.0,57856.0,0.27]
[1617953110632,4.74542645,57857.0,57854.0,0.30400974]
[1617953110834,1.90512645,57857.0,57856.0,0.27]
[1617953111237,5.18192645,57857.0,57853.0,0.30406063]
[1617953111532,4.87805441,57857.0,57856.0,0.27]
[1617953111733,4.87805441,57857.0,57854.0,0.27]
[1617953111734,0.51286503,57855.0,57854.0,0.27]
[1617953111934,0.51286503,57855.0,57852.0,0.31410244]
[1617953112133,0.51286503,57855.0,57853.0,0.27]
[1617953112333,1.33349578,57855.0,57853.0,0.27]
[1617953112733,1.33350455,57854.0,57853.0,0.27]
[1617953112933,4.01020455,57854.0,57853.0,0.27]
[1617953113634,4.43011231,57854.0,57853.0,0.27]
[1617953114735,1.75341231,57854.0,57853.0,0.27]
[1617953114935,1.75341231,57854.0,57853.0,3.2463]
[1617953115234,1.33350455,57854.0,57853.0,3.2463]
[1617953116541,0.82063396,57854.0,57853.0,0.57430584]
[1617953116940,4.20833396,57854.0,57853.0,0.57430584]
[1617953117439,4.35190396,57854.0,57853.0,0.57430584]
[1617953117639,4.77145606,57854.0,57853.0,0.57430584]
[1617953119842,4.77145606,57854.0,57853.0,0.27]
[1617953120143,3.90040668,57854.0,57853.0,0.27]
[1617953120344,3.90040668,57854.0,57852.0,0.30419108]
[1617953120642,4.35155146,57854.0,57853.0,0.27]
[1617953121545,3.53127,57854.0,57853.0,0.27]
[1617953121746,4.3516564,57854.0,57853.0,0.27]
[1617953122450,4.35165346,57854.0,57853.0,0.27]
[1617953124249,4.35165346,57854.0,57853.0,0.5742808]
[1617953124647,4.35165346,57854.0,57853.0,0.3042808]
[1617953124947,4.35165346,57854.0,57853.0,0.5742808]
[1617953126753,3.53127,57854.0,57853.0,0.5742808]
[1617953127052,4.35164512,57854.0,57853.0,0.27]
[1617953127352,4.35164512,57854.0,57853.0,0.30430385]
[1617953127751,4.35164512,57854.0,57853.0,0.57430385]
[1617953127952,4.35164512,57854.0,57853.0,0.30430385]
[1617953128353,0.96394512,57854.0,57853.0,0.57430385]
[1617953128553,0.82037512,57854.0,57853.0,0.57430385]
[1617953128755,0.82037512,57854.0,57853.0,4.21620385]
[1617953129754,0.82037512,57854.0,57853.0,0.57430385]
[1617953130657,4.47047512,57854.0,57853.0,0.57430385]
[1617953131360,4.86559505,57854.0,57853.0,0.57430385]
[1617953139269,5.37848931,57854.0,57853.0,0.27]
[1617953139569,6.37848931,57854.0,57853.0,0.27]
[1617953139769,6.37848931,57854.0,57848.0,0.01]
[1617953140069,3.18891824,57854.0,57846.0,0.30499256]
[1617953140268,3.44426,57847.0,57846.0,0.30499256]
[1617953140570,3.44426,57847.0,57842.0,0.4566]
[1617953140571,4.77791871,57847.0,57844.0,0.30510657]
[1617953140769,4.88517526,57847.0,57846.0,0.27]
[1617953140971,4.88517526,57847.0,57844.0,0.30510657]
[1617953140972,5.27998468,57847.0,57844.0,0.27]
[1617953141269,5.27998468,57847.0,57845.0,0.27]
[1617953141704,1.0,57845.0,57842.0,0.76153594]
[1617953141906,2.20233702,57846.0,57845.0,0.27]
[1617953142072,1.51251618,57846.0,57845.0,0.27]
[1617953142269,1.51251618,57846.0,57843.0,0.27]
[1617953142573,3.1125,57844.0,57842.0,0.4566]
[1617953142770,3.1125,57844.0,57843.0,0.27]
[1617953143571,3.93257365,57844.0,57843.0,0.27]
[1617953147078,4.93257365,57844.0,57843.0,0.27]
[1617953147779,3.93257365,57844.0,57843.0,0.27]
[1617953148078,4.44510965,57844.0,57843.0,0.27]
[1617953148678,5.44510965,57844.0,57843.0,0.27]
[1617953151279,4.44510965,57844.0,57843.0,0.27]
[1617953151483,3.93257365,57844.0,57843.0,0.27]
[1617953151981,4.44510356,57844.0,57843.0,0.27]
[1617953153181,3.93257365,57844.0,57843.0,0.27]
[1617953154381,0.82007365,57844.0,57843.0,0.27]
[1617953154782,0.82007365,57844.0,57843.0,3.6698]
[1617953156084,0.82007365,57844.0,57843.0,3.79653]
[1617953156685,0.36904339,57844.0,57843.0,4.1013397]
[1617953156884,0.36904339,57844.0,57843.0,4.20859625]
[1617953157087,0.36884127,57845.0,57843.0,4.5740955]
[1617953157486,0.36883656,57846.0,57844.0,0.73168485]
[1617953157888,0.10725655,57847.0,57845.0,0.93990726]
[1617953157889,0.47608659,57847.0,57845.0,0.93990726]
[1617953158485,0.47608659,57847.0,57846.0,0.73159126]
[1617953158887,0.47608659,57847.0,57846.0,1.00159126]
[1617953159888,0.47608659,57847.0,57846.0,4.30739126]
[1617953162189,0.47608659,57847.0,57846.0,1.00159126]
[1617953162389,3.33378659,57847.0,57846.0,1.00159126]
[1617953162591,3.33378659,57847.0,57846.0,0.63617992]
[1617953163190,3.33378659,57847.0,57846.0,0.57450945]
[1617953163792,3.89311053,57847.0,57846.0,0.27]
[1617953163991,1.03541053,57847.0,57846.0,0.27]
[1617953164192,1.03541053,57847.0,57846.0,2.7102]
[1617953164492,1.03541053,57847.0,57846.0,2.9802]
[1617953164691,1.03541053,57847.0,57846.0,2.7102]
[1617953164891,0.92687053,57847.0,57846.0,2.7102]
[1617953165092,1.01061533,57847.0,57846.0,0.27]
[1617953165290,1.12700533,57847.0,57846.0,0.27]
[1617953165493,1.12700533,57847.0,57844.0,0.57506508]
[1617953165791,2.9253,57846.0,57844.0,0.30506508]
[1617953166091,0.81995545,57845.0,57844.0,0.30506508]
[1617953166491,1.18827773,57845.0,57844.0,0.27]
[1617953166791,1.18827773,57845.0,57844.0,0.30506653]
[1617953167291,1.18827773,57845.0,57844.0,0.57506653]
[1617953168194,1.18827773,57845.0,57844.0,0.27]
[1617953168593,1.18827773,57845.0,57843.0,0.57504452]
[1617953168994,1.18827773,57845.0,57844.0,0.27]
[1617953169194,0.36832228,57845.0,57844.0,0.27]
[1617953169595,1.18836268,57845.0,57844.0,0.27]
[1617953172896,4.14446268,57845.0,57844.0,0.27]
[1617953173097,3.7761404,57845.0,57844.0,0.27]
[1617953173297,4.7761404,57845.0,57844.0,0.27]
[1617953173500,5.14360379,57845.0,57844.0,0.27]
[1617953173797,6.64360379,57845.0,57844.0,0.27]
[1617953174100,3.99782379,57845.0,57843.0,0.27]
[1617953174331,3.99782379,57845.0,57844.0,0.27]
[1617953174598,3.99782379,57845.0,57843.0,0.27]
[1617953174599,8.07026337,57845.0,57843.0,0.27]
[1617953174799,8.07026337,57845.0,57844.0,0.27]
[1617953175099,8.07026337,57845.0,57843.0,0.27]
[1617953175298,8.52071514,57845.0,57843.0,0.27]
[1617953175498,8.52071514,57845.0,57844.0,0.27]
[1617953175797,6.37022,57845.0,57843.0,0.27]
[1617953176100,7.70205608,57845.0,57844.0,0.27]
[1617953176298,7.70205608,57845.0,57843.0,0.27]
[1617953176708,7.70205608,57845.0,57844.0,0.27]
[1617953176900,1.70053777,57844.0,57843.0,0.27]
[1617953177099,3.40053777,57844.0,57843.0,0.27]
[1617953177311,3.40053777,57844.0,57842.0,0.4566]
[1617953177500,3.40053777,57844.0,57843.0,0.27]
[1617953177801,1.7,57844.0,57843.0,0.27]
[1617953178305,3.03182266,57844.0,57843.0,0.27]
[1617953178604,4.03182266,57844.0,57843.0,0.27]
[1617953179050,7.41512266,57844.0,57843.0,0.27]
[1617953179604,7.41512266,57844.0,57842.0,0.4566]
[1617953179805,7.9889893,57844.0,57842.0,0.45557176]
[1617953180020,7.9889893,57844.0,57824.0,0.30496402]
[1617953180206,3.73516558,57843.0,57820.0,0.30521138]
[1617953180404,1.7,57842.0,57820.0,0.30521138]
[1617953180605,1.33233449,57825.0,57817.0,0.30538689]
[1617953180810,1.10579,57821.0,57817.0,0.30538689]
[1617953181006,1.10579,57821.0,57815.0,0.30548572]
[1617953181007,0.10725655,57818.0,57815.0,0.30548572]
[1617953181406,0.10725655,57818.0,57815.0,0.57548572]
[1617953181607,0.81993076,57816.0,57815.0,0.27]
[1617953181805,0.81993076,57816.0,57814.0,0.30553044]
[1617953182006,0.81993076,57816.0,57815.0,0.01]
[1617953182707,1.81993076,57816.0,57815.0,0.01]
[1617953182907,4.53133076,57816.0,57815.0,0.01]
[1617953183107,3.53133076,57816.0,57815.0,0.01]
[1617953183307,3.61304104,57816.0,57815.0,0.01]
[1617953183608,3.89692863,57816.0,57815.0,0.01]
[1617953184207,3.07699787,57816.0,57815.0,0.01]
[1617953184629,3.89694032,57816.0,57815.0,0.01]
[1617953186226,3.16209463,57816.0,57815.0,0.31633221]
[1617953186713,0.36788288,57817.0,57812.0,0.27]
[1617953186951,0.36788288,57817.0,57816.0,3.22515655]
[1617953187112,0.36788288,57817.0,57816.0,3.31951655]
[1617953187313,0.10725655,57818.0,57816.0,3.31951655]
[1617953187642,0.10725655,57818.0,57816.0,3.32951655]
[1617953188415,0.10725655,57818.0,57817.0,0.30503389]
[1617953188828,0.10725655,57818.0,57817.0,0.57503389]
[1617953190217,0.36784017,57826.0,57817.0,1.57503389]
[1617953190415,0.36774112,57830.0,57817.0,1.94064074]
[1617953190614,2.8236,57837.0,57817.0,1.94064074]
[1617953190932,0.36773132,57832.0,57831.0,0.10725655]
[1617953191114,2.8236,57837.0,57831.0,3.59936655]
[1617953191115,0.36787709,57833.0,57831.0,3.59936655]
[1617953191317,0.36787709,57833.0,57832.0,0.27]
[1617953191815,0.36787709,57833.0,57832.0,3.4257]
[1617953191967,0.36787709,57833.0,57832.0,3.6957]
[1617953192165,1.0,57859.0,57832.0,3.6957]
[1617953192166,0.36785721,57836.0,57833.0,1.0]
[1617953192391,0.36785721,57836.0,57832.0,4.6957]
[1617953192517,0.367849,57839.0,57835.0,1.0]
[1617953193018,0.367849,57839.0,57838.0,3.78605655]
[1617953193218,0.36784339,57841.0,57838.0,3.78605655]
[1617953193619,0.36784122,57842.0,57838.0,3.78605655]
[1617953193817,0.36784122,57842.0,57839.0,0.01]
[1617953194019,0.47509446,57843.0,57839.0,0.01]
[1617953194520,0.10725655,57843.0,57839.0,0.01]
[1617953196121,0.10725655,57843.0,57839.0,0.31397277]
[1617953196921,0.10725655,57843.0,57839.0,1.31397277]
[1617953197421,0.10725655,57843.0,57840.0,1.0]
[1617953197822,0.10725655,57843.0,57841.0,0.27]
[1617953200745,0.21711655,57843.0,57840.0,0.01]
[1617953201124,0.58506557,57843.0,57842.0,0.27]
[1617953201326,0.58506557,57843.0,57842.0,2.8004]
[1617953201529,0.21711655,57843.0,57842.0,2.8004]
[1617953201826,0.10725655,57843.0,57842.0,3.0704]
[1617953202026,0.10725655,57843.0,57842.0,2.8004]
[1617953202226,0.10725655,57843.0,57842.0,3.0704]
[1617953207435,0.10725655,57843.0,57842.0,0.27]
[1617953207635,2.82325655,57843.0,57842.0,0.27]
[1617953207836,2.82325655,57843.0,57837.0,0.27]
[1617953208137,3.19101924,57843.0,57842.0,0.27]
[1617953208536,3.19101924,57843.0,57837.0,0.27]
[1617953208735,3.19101924,57843.0,57836.0,0.27]
[1617953209137,0.10725655,57834.0,57833.0,0.27]
[1617953209335,0.21546655,57834.0,57832.0,0.30441301]
[1617953209835,0.21546655,57834.0,57833.0,0.27]
[1617953210435,0.21546655,57834.0,57831.0,0.30474756]
[1617953210836,0.21546655,57834.0,57832.0,0.27]
[1617953211035,0.10725655,57834.0,57831.0,0.30474756]
[1617953211237,2.5738,57832.0,57831.0,0.30474756]
[1617953211437,2.5738,57832.0,57830.0,0.36555748]
[1617953211661,2.5738,57832.0,57831.0,0.27]
[1617953211842,2.72679,57832.0,57831.0,0.94011226]
[1617953212137,2.72679,57832.0,57831.0,0.30459648]
[1617953212341,2.72679,57832.0,57831.0,0.57459648]
[1617953212546,2.72679,57832.0,57831.0,0.30459648]
[1617953212738,2.72679,57832.0,57831.0,0.57459648]
[1617953214043,2.72679,57832.0,57831.0,0.27]
[1617953214442,2.72679,57832.0,57830.0,3.75060478]
[1617953214843,2.72679,57832.0,57831.0,0.27]
[1617953217645,2.72679,57832.0,57831.0,0.57436942]
[1617953219750,0.15299,57832.0,57831.0,0.57436942]
[1617953219950,0.10725655,57834.0,57831.0,0.57436942]
[1617953220150,0.10725655,57834.0,57831.0,3.58856942]
[1617953220552,0.36779454,57838.0,57831.0,3.58856942]
[1617953220954,0.36802151,57839.0,57833.0,0.30441933]
[1617953221354,0.368019,57840.0,57838.0,0.10725655]
[1617953221856,0.368019,57840.0,57839.0,0.01]
[1617953222857,0.10725655,57842.0,57839.0,0.01]
[1617953223258,0.36801433,57841.0,57839.0,0.01]
[1617953224761,0.36801433,57841.0,57840.0,2.6403]
[1617953225180,0.36801433,57841.0,57840.0,2.9103]
[1617953225363,0.47526103,57842.0,57840.0,2.9103]
[1617953225762,0.10725655,57842.0,57840.0,2.9103]
[1617953226464,0.10725655,57842.0,57840.0,0.27]
[1617953226862,0.10725655,57842.0,57839.0,0.27]
[1617953227264,0.10725655,57842.0,57841.0,0.42007]
[1617953227562,0.10725655,57842.0,57841.0,0.15007]
[1617953227762,0.10725655,57842.0,57841.0,0.42007]
[1617953228965,0.10725655,57842.0,57841.0,0.72411706]
[1617953229869,0.10725655,57842.0,57841.0,0.57404706]
[1617953230368,0.10725655,57842.0,57841.0,0.27]
[1617953230768,0.24577655,57842.0,57840.0,0.01]
[1617953231168,0.24577655,57842.0,57841.0,3.5904]
[1617953231468,0.24577655,57842.0,57841.0,3.3204]
[1617953231868,0.24577655,57842.0,57841.0,3.5904]
[1617953233671,0.24577655,57842.0,57841.0,0.27]
[1617953233872,3.50647655,57842.0,57841.0,0.27]
[1617953234170,3.50647655,57842.0,57839.0,0.27]
[1617953234371,3.87447556,57842.0,57841.0,0.27]
[1617953234671,3.87447556,57842.0,57839.0,0.27]
[1617953235071,3.87447556,57842.0,57841.0,0.27]
[1617953235272,3.87447556,57842.0,57838.0,0.01]
[1617953235273,3.50647655,57842.0,57838.0,0.01]
[1617953235472,3.50647655,57842.0,57840.0,0.27]
[1617953235672,3.87421206,57842.0,57838.0,0.27]
[1617953236071,3.87421206,57842.0,57841.0,0.27]
[1617953236273,3.87421206,57842.0,57839.0,0.27]
[1617953236676,3.87421206,57842.0,57841.0,0.27]
[1617953236876,3.87421206,57842.0,57834.0,0.27]
[1617953237183,3.87421206,57842.0,57833.0,0.30424043]
[1617953237184,3.87421206,57842.0,57841.0,0.27]
[1617953237675,3.87421206,57842.0,57834.0,0.27]
[1617953237875,3.87421206,57842.0,57841.0,0.27]
[1617953238077,3.87421206,57842.0,57834.0,0.27]
[1617953238376,3.87421206,57842.0,57841.0,0.27]
[1617953238577,3.50647655,57842.0,57841.0,0.27]
[1617953238776,3.50647655,57842.0,57834.0,0.27]
[1617953239077,3.87421681,57842.0,57841.0,0.27]
[1617953239277,3.87421681,57842.0,57833.0,0.30424043]
[1617953239478,3.87421681,57842.0,57834.0,0.27]
[1617953239982,0.3680103,57840.0,57835.0,0.304492]
[1617953240479,0.3680103,57840.0,57836.0,0.01]
[1617953241682,0.3680103,57840.0,57834.0,0.30451217]
[1617953241881,0.3680103,57840.0,57835.0,0.01]
[1617953242281,0.3680103,57840.0,57834.0,0.30451217]
[1617953242483,0.3680103,57840.0,57835.0,0.27]
[1617953243384,0.10725655,57836.0,57835.0,0.27]
[1617953246689,0.92849879,57836.0,57835.0,1.39159766]
[1617953247188,0.92849879,57836.0,57835.0,1.12159766]
[1617953247489,0.92849879,57836.0,57835.0,0.9429586]
[1617953247695,0.47682582,57836.0,57835.0,1.39150856]
[1617953253511,0.55902391,57836.0,57835.0,1.39150856]
[1617953254001,0.92867108,57836.0,57835.0,1.39150856]
[1617953254804,0.57555382,57836.0,57835.0,1.39150856]
[1617953256704,1.02732737,57836.0,57835.0,1.39150856]
[1617953275635,1.15545737,57836.0,57835.0,1.39150856]
[1617953276934,4.72735737,57836.0,57835.0,1.39150856]
[1617953277336,4.72735737,57836.0,57835.0,0.9429586]
[1617953277337,5.53043088,57836.0,57835.0,0.9429586]
[1617953278540,6.53043088,57836.0,57835.0,0.9429586]
[1617953279337,6.98612021,57836.0,57835.0,0.9429586]
[1617953280137,6.98612021,57836.0,57835.0,0.57589027]
[1617953280638,5.98612021,57836.0,57835.0,0.57589027]
[1617953281040,5.53043088,57836.0,57835.0,0.94402024]
[1617953284343,5.53043088,57836.0,57835.0,0.57589027]
[1617953291551,3.80728655,57836.0,57835.0,0.27]
[1617953291952,5.14179384,57836.0,57835.0,0.30642278]
[1617953292252,5.14179384,57836.0,57835.0,0.57642278]
[1617953292754,5.14179384,57836.0,57835.0,0.30642278]
[1617953292953,5.14179384,57836.0,57835.0,0.57642278]
[1617953293755,5.14179384,57836.0,57835.0,0.27]
[1617953293955,1.44176384,57836.0,57835.0,0.27]
[1617953294257,0.92850759,57836.0,57835.0,3.23782864]
[1617953295056,0.92850759,57836.0,57835.0,3.29951312]
[1617953296257,0.92850759,57836.0,57835.0,0.63781312]
[1617953296456,0.82125104,57836.0,57835.0,0.63781312]
[1617953296658,0.77895104,57836.0,57835.0,2.00507052]
[1617953297061,0.32727323,57836.0,57835.0,2.45346613]
[1617953297860,0.45144599,57841.0,57835.0,2.45346613]
[1617953298160,0.4514363,57842.0,57835.0,2.45346613]
[1617953298360,0.4514363,57842.0,57840.0,1.0]
[1617953298660,0.45143558,57841.0,57840.0,1.0]
[1617953298860,0.45143558,57841.0,57839.0,1.0]
[1617953299060,0.45143558,57841.0,57840.0,0.57563756]
[1617953299261,0.45143558,57841.0,57840.0,3.96823756]
[1617953299662,0.45143558,57841.0,57840.0,4.23823756]
[1617953299961,0.45143558,57841.0,57840.0,4.34549411]
[1617953300984,0.10725655,57843.0,57840.0,4.34549411]
[1617953300985,0.45137459,57842.0,57840.0,4.34549411]
[1617953301161,0.45137459,57842.0,57840.0,0.68289411]
[1617953301561,0.45137459,57842.0,57841.0,0.30557952]
[1617953301963,0.55862925,57843.0,57841.0,0.57557952]
[1617953302664,0.55862925,57843.0,57842.0,0.30554048]
[1617953303065,0.55862925,57843.0,57842.0,0.57554048]
[1617953304367,0.10725655,57843.0,57842.0,0.57554048]
[1617953306771,0.55850413,57843.0,57842.0,0.57554048]
[1617953309071,0.10725655,57843.0,57842.0,0.57554048]
[1617953313777,0.10725655,57843.0,57842.0,0.27]
[1617953313978,0.10725655,57843.0,57842.0,0.57548564]
[1617953314177,0.10725655,57843.0,57842.0,0.30548564]
[1617953314678,0.10725655,57843.0,57842.0,0.57548564]
[1617953315881,0.45124212,57844.0,57842.0,0.57548564]
[1617953316783,0.45111359,57845.0,57843.0,0.45024522]
[1617953317083,0.45111295,57846.0,57843.0,0.45024522]
[1617953317282,0.45111295,57846.0,57844.0,0.27]
[1617953317482,0.45111295,57846.0,57845.0,0.30537805]
[1617953318081,0.45111295,57846.0,57845.0,0.57537805]
[1617953320883,0.45111678,57847.0,57845.0,0.57537805]
[1617953321384,0.45111678,57847.0,57846.0,0.30521579]
[1617953321885,0.45111678,57847.0,57846.0,0.57521579]